Workbook

Sheet Plan1

Sheet Boletim Produção
B1: PAL | D1: BOLETIM DE PRODUÇÃO | J1: TURNO | L1: DATA | N1: RESPONSÁVEL | P1: TRS TURNO | R1: NÃO RITMO | T1: INTERRUP. | V1: PREPARAÇÃO | X1: PARADAS | Z1: FOLHA Nº
J2: - | P2: =IF($AH$5="","",100*SUM($M:$M)/$AH$5) -> 40.93950723 | R2: =IF($P$2="","",100-$P$2-$T$2-$V$2) -> 11.23631195 | T2: =IF($AF$5="","",100*($AF$5/($AD$5-$AE$5))) -> 16.99736953 | V2: =IF($AH$5="","",100*($AG$5/($AD$5-$AE$5))) -> 30.82681129 | X2: =IF($AE$5="","",IF($AE$5=0,"",$AE$5/24)) -> 06:53:34 | Z2: 1
A3: CARREGAMENTO DO FORNO | M3: PRODUÇÃO LÍQUIDA | S3: PERDAS DE PROCESSO | W3: FORNO | Y3: PRODUTIVIDADE (%)
A4: DADOS DE RASTREAMENTO | C4: DIMENSÕES TUBOS LAMINADOS | G4: DADOS DO MATERIAL | J4: DADOS DO BLOCO | M4: EMPREGO | O4: REALIZADO | S4: DEVOLUÇÕES | U4: SUCATAS | W4: HORA | Y4: TRS | Z4: NÃO RITMO | AA4: PREPARAÇÃO + INTERRUPÇÃO | AB4: RITMO TRS [pç/h] | AD4: TEMPO TOTAL [h] | AE4: PARADAS [h] | AF4: INTERRUPÇÕES [h] | AG4: PREPARAÇÃO [h] | AH4: PEÇAS TRS
A5: ORDEM DE PROCESSO | B5: CARTÃO Nº | C5: DIÂMETRO EXTERNO | D5: PAREDE | E5: CMP.QTE LAM3 | F5: CMP. BRUTO FINAL | G5: CORRIDA | H5: AÇO | I5: AQA | J5: DIÂMETRO BLOCO | K5: PESO UNITÁRIO | L5: CMP. BLOCO | M5: PEÇAS | N5: PESO BRUTO | O5: PEÇAS | P5: PESO BRUTO | Q5: PEÇAS ACUM | R5: PESO BRUTO ACUM. | S5: QTD | T5: PESO BRUTO | U5: QTD | V5: PESO BRUTO | W5: INÍCIO | X5: TÉRMINO | AB5: % | AC5: TOTAL: | AD5: =IF(AD6="","",SUM(AD6:AD65536)) -> 24 | AE5: =IF(AD6="","",SUM(AE6:AE65536)) -> 6.892777778 | AF5: =IF(AD6="","",SUM(AF6:AF65536)) -> 2.907777778 | AG5: =IF(AD6="","",SUM(AG6:AG65536)) -> 5.273611111 | AH5: =IF(AD6="","",SUM(AH6:AH65536)) -> 867.1330556 | AI5: DATA/HORA INÍCIO | AJ5: DATA/HORA TÉRMINO | AK5: Tempo Liquido [min] | AL5: Peças Hora Real | AM5: Paradas Plano | AN5: Interrupção | AO5: Preparação | AP5: Filtro
A6: LA08550405 | B6: 582 | C6: 273.1 | D6: 15.11 | E6: 13.12 | F6: 12.96 | G6: 136937 | H6: SAE 4133 NBVTI | I6: TB20 | J6: 230 | K6: 1309.8 | L6: 4.031 | M6: 22 | N6: =IF(A6="","",M6*K6) -> 28815.6 | O6: 22 | P6: =IF(N6="","",IF(AND(T6="",V6=""),N6,IF(T6="",N6-V6,IF(V6="",N6-T6,(N6-T6-V6))))) -> 28815.6 | Q6: =IF(A6="","",O6) -> 22 | R6: =IF(P6="","",P6) -> 28815.6 | S6: 0 | T6: =IF(S6="","",(K6*S6)) -> 0 | U6: 0 | V6: =IF(U6="","",(K6*U6)) -> 0 | W6: 00:00:00 | X6: 00:43:00 | Y6: =IF(M6="","",100*(M6/AC6/(AD6-AE6))) -> 71.25185552 | Z6: =IF(AA6="","",100-Y6-AA6) -> 28.74814448 | AA6: =IF(M6="","",100*(AF6+AG6)/(AD6-AE6)) -> 0 | AB6: 100 | AC6: 55 | AD6: 0.7283333333 | AE6: 0.1669444444 | AH6: =IF(AC6="","",AC6*(AD6-AE6)) -> 30.87638889 | AI6: 01/03/16 00:00:00 | AJ6: 01/03/16 00:43:42 | AK6: =IF(AD6="","",ROUND(60*(AD6-SUM(AE6:AG6)),1)) -> 33.7 | AL6: =IF(AK6="","",M6/AK6*60) -> 39.16913947 | AM6: =AE6/24 -> 00:10:01 | AN6: =AF6/24 -> 00:00:00 | AO6: =AG6/24 -> 00:00:00 | AP6: 00:10:00
A7: LA08551102 | B7: 583 | C7: 273.1 | D7: 15.11 | E7: 13.22 | F7: 13.06 | G7: 136946 | H7: SAE 4133 NBVTI | I7: TB20 | J7: 230 | K7: 1319.5 | L7: 4.062 | M7: 22 | N7: =IF(A7="","",M7*K7) -> 29029 | O7: 22 | P7: =IF(N7="","",IF(AND(T7="",V7=""),N7,IF(T7="",N7-V7,IF(V7="",N7-T7,(N7-T7-V7))))) -> 29029 | Q7: =IF(A7="","",Q6+O7) -> 44 | R7: =IF(P7="","",R6+P7) -> 57844.6 | S7: 0 | T7: =IF(S7="","",(K7*S7)) -> 0 | U7: 0 | V7: =IF(U7="","",(K7*U7)) -> 0 | W7: 00:43:00 | X7: 01:11:00 | Y7: =IF(M7="","",100*(M7/AC7/(AD7-AE7))) -> 85.25754885 | Z7: =IF(AA7="","",100-Y7-AA7) -> 14.74245115 | AA7: =IF(M7="","",100*(AF7+AG7)/(AD7-AE7)) -> 0 | AB7: 100 | AC7: 55 | AD7: 0.4691666667 | AH7: =IF(AC7="","",AC7*(AD7-AE7)) -> 25.80416667 | AI7: 01/03/16 00:43:42 | AJ7: 01/03/16 01:11:51 | AK7: =IF(AD7="","",ROUND(60*(AD7-SUM(AE7:AG7)),1)) -> 28.2 | AL7: =IF(AK7="","",M7/AK7*60) -> 46.80851064 | AM7: =AE7/24 -> 00:00:00 | AN7: =AF7/24 -> 00:00:00 | AO7: =AG7/24 -> 00:00:00 | AP7: 00:00:00
A8: LA08551101 | B8: 584 | C8: 273.1 | D8: 15.11 | E8: 13.22 | F8: 13.06 | G8: 136945 | H8: SAE 4133 NBVTI | I8: TB20 | J8: 230 | K8: 1319.5 | L8: 4.062 | M8: 2 | N8: 2639 | O8: 2 | P8: 2639 | Q8: =IF(A8="","",Q7+O8) -> 46 | R8: =IF(P8="","",R7+P8) -> 60483.6 | S8: 0 | T8: 0 | U8: 0 | V8: 0 | W8: 01:11:00 | X8: 08:00:00 | Y8: 47.43083004 | Z8: 52.56916996 | AA8: 0 | AB8: 100 | AC8: 55 | AD8: 6.8025 | AE8: 6.725833333 | AH8: 4.216666667 | AI8: 01/03/16 01:11:51 | AJ8: 01/03/16 08:00:00 | AK8: 4.6 | AL8: 26.08695652 | AM8: 06:43:33 | AN8: 00:00:00 | AO8: 00:00:00 | AP8: 06:43:33
A9: LA08551101 | B9: 584 | C9: 273.1 | D9: 15.11 | E9: 13.22 | F9: 13.06 | G9: 136945 | H9: SAE 4133 NBVTI | I9: TB20 | J9: 230 | K9: 1319.5 | L9: 4.062 | M9: 19 | N9: 25070.5 | O9: 19 | P9: 25070.5 | Q9: 65 | R9: 85554.1 | S9: 0 | T9: 0 | U9: 0 | V9: 0 | W9: 08:00:00 | X9: 08:30:00 | Y9: 68.03262383 | Z9: 31.96737617 | AA9: 0 | AB9: 100 | AC9: 55 | AD9: 0.5077777778 | AH9: 27.92777778 | AI9: 01/03/16 08:00:00 | AJ9: 01/03/16 08:30:28 | AK9: 30.5 | AL9: 37.37704918 | AM9: 00:00:00 | AN9: 00:00:00 | AO9: 00:00:00 | AP9: 00:00:00
A10: LA08550413 | B10: 585 | C10: 273.1 | D10: 15.11 | E10: 13.12 | F10: 12.96 | G10: 46973 | H10: SAE 4133 NBVTI | I10: TB20 | J10: 230 | K10: 1309 | L10: 4.031 | M10: 1 | N10: 1309 | O10: 1 | P10: 1309 | Q10: 66 | R10: 86863.1 | S10: 0 | T10: 0 | U10: 0 | V10: 0 | W10: 08:30:00 | X10: 08:32:00 | Y10: 71.14624506 | Z10: 28.85375494 | AA10: 0 | AB10: 100 | AC10: 55 | AD10: 0.02555555556 | AH10: 1.405555556 | AI10: 01/03/16 08:30:28 | AJ10: 01/03/16 08:32:00 | AK10: 1.5 | AL10: 40 | AM10: 00:00:00 | AN10: 00:00:00 | AO10: 00:00:00 | AP10: 00:00:00
A11: LA08550416 | B11: 586 | C11: 273.1 | D11: 15.11 | E11: 13.12 | F11: 12.96 | G11: 46976 | H11: SAE 4133 NBVTI | I11: TB20 | J11: 230 | K11: 1309 | L11: 4.031 | M11: 1 | N11: 1309 | O11: 1 | P11: 1309 | Q11: 67 | R11: 88172.1 | S11: 0 | T11: 0 | U11: 0 | V11: 0 | W11: 08:32:00 | X11: 08:34:00 | Y11: 46.75324675 | Z11: 53.24675325 | AA11: 0 | AB11: 100 | AC11: 55 | AD11: 0.03888888889 | AH11: 2.138888889 | AI11: 01/03/16 08:32:00 | AJ11: 01/03/16 08:34:20 | AK11: 2.3 | AL11: 26.08695652 | AM11: 00:00:00 | AN11: 00:00:00 | AO11: 00:00:00 | AP11: 00:00:00
A12: LA08550414 | B12: 587 | C12: 273.1 | D12: 15.11 | E12: 13.12 | F12: 12.96 | G12: 46974 | H12: SAE 4133 NBVTI | I12: TB20 | J12: 230 | K12: 1309 | L12: 4.031 | M12: 1 | N12: 1309 | O12: 1 | P12: 1309 | Q12: 68 | R12: 89481.1 | S12: 0 | T12: 0 | U12: 0 | V12: 0 | W12: 08:34:00 | X12: 08:35:00 | Y12: 105.5718475 | Z12: -5.571847507 | AA12: 0 | AB12: 100 | AC12: 55 | AD12: 0.01722222222 | AH12: 0.9472222222 | AI12: 01/03/16 08:34:20 | AJ12: 01/03/16 08:35:22 | AK12: 1 | AL12: 60 | AM12: 00:00:00 | AN12: 00:00:00 | AO12: 00:00:00 | AP12: 00:00:00
A13: LA08550415 | B13: 588 | C13: 273.1 | D13: 15.11 | E13: 13.12 | F13: 12.96 | G13: 46975 | H13: SAE 4133 NBVTI | I13: TB20 | J13: 230 | K13: 1309 | L13: 4.031 | M13: 1 | N13: 1309 | O13: 1 | P13: 1309 | Q13: 69 | R13: 90790.1 | S13: 0 | T13: 0 | U13: 0 | V13: 0 | W13: 08:35:00 | X13: 08:38:00 | Y13: 38.73050027 | Z13: 61.26949973 | AA13: 0 | AB13: 100 | AC13: 55 | AD13: 0.04694444444 | AH13: 2.581944444 | AI13: 01/03/16 08:35:22 | AJ13: 01/03/16 08:38:11 | AK13: 2.8 | AL13: 21.42857143 | AM13: 00:00:00 | AN13: 00:00:00 | AO13: 00:00:00 | AP13: 00:00:00
A14: LAX0109201 | B14: 589 | C14: 273.1 | D14: 15.11 | E14: 13.12 | F14: 12.99 | G14: 46970 | H14: SAE 4133 NBVTI | I14: TB20 | J14: 230 | K14: 1309 | L14: 4.04 | M14: 1 | N14: 1309 | O14: 1 | P14: 1309 | Q14: 70 | R14: 92099.1 | S14: 0 | T14: 0 | U14: 0 | V14: 0 | W14: 08:38:00 | X14: 08:38:00 | Y14: 152.2198732 | Z14: -52.21987315 | AA14: 0 | AB14: 100 | AC14: 55 | AD14: 0.01194444444 | AH14: 0.6569444444 | AI14: 01/03/16 08:38:11 | AJ14: 01/03/16 08:38:54 | AK14: 0.7 | AL14: 85.71428571 | AM14: 00:00:00 | AN14: 00:00:00 | AO14: 00:00:00 | AP14: 00:00:00
A15: LAX0109202 | B15: 590 | C15: 273.1 | D15: 15.11 | E15: 13.12 | F15: 12.99 | G15: 46969 | H15: SAE 4133 NBVTI | I15: TB20 | J15: 230 | K15: 1309 | L15: 4.04 | M15: 1 | N15: 1309 | O15: 1 | P15: 1309 | Q15: 71 | R15: 93408.1 | S15: 0 | T15: 0 | U15: 0 | V15: 0 | W15: 08:38:00 | X15: 08:41:00 | Y15: 37.4025974 | Z15: 62.5974026 | AA15: 0 | AB15: 100 | AC15: 55 | AD15: 0.04861111111 | AH15: 2.673611111 | AI15: 01/03/16 08:38:54 | AJ15: 01/03/16 08:41:49 | AK15: 2.9 | AL15: 20.68965517 | AM15: 00:00:00 | AN15: 00:00:00 | AO15: 00:00:00 | AP15: 00:00:00
A16: LAX0109203 | B16: 591 | C16: 273.1 | D16: 15.11 | E16: 13.12 | F16: 12.99 | G16: 46972 | H16: SAE 4133 NBVTI | I16: TB20 | J16: 230 | K16: 1309 | L16: 4.04 | M16: 1 | N16: 1309 | O16: 1 | P16: 1309 | Q16: 72 | R16: 94717.1 | S16: 0 | T16: 0 | U16: 0 | V16: 0 | W16: 08:41:00 | X16: 08:43:00 | Y16: 56.42633229 | Z16: 43.57366771 | AA16: 0 | AB16: 100 | AC16: 55 | AD16: 0.03222222222 | AH16: 1.772222222 | AI16: 01/03/16 08:41:49 | AJ16: 01/03/16 08:43:45 | AK16: 1.9 | AL16: 31.57894737 | AM16: 00:00:00 | AN16: 00:00:00 | AO16: 00:00:00 | AP16: 00:00:00
A17: LAX0109204 | B17: 592 | C17: 273.1 | D17: 15.11 | E17: 13.12 | F17: 12.99 | G17: 46971 | H17: SAE 4133 NBVTI | I17: TB20 | J17: 230 | K17: 1309 | L17: 4.04 | M17: 1 | N17: 1309 | O17: 1 | P17: 1309 | Q17: 73 | R17: 96026.1 | S17: 0 | T17: 0 | U17: 0 | V17: 0 | W17: 08:43:00 | X17: 08:46:00 | Y17: 33.73945642 | Z17: 66.26054358 | AA17: 0 | AB17: 100 | AC17: 55 | AD17: 0.05388888889 | AH17: 2.963888889 | AI17: 01/03/16 08:43:45 | AJ17: 01/03/16 08:46:59 | AK17: 3.2 | AL17: 18.75 | AM17: 00:00:00 | AN17: 00:00:00 | AO17: 00:00:00 | AP17: 00:00:00
A18: LA08592801 | B18: 1 | C18: 273 | D18: 12.7 | E18: 13 | F18: 12.89 | G18: 136659 | H18: GR B | I18: D024 | J18: 230 | K18: 1072.4 | L18: 3.295 | M18: 9 | N18: 9651.6 | O18: 9 | P18: 9651.6 | Q18: 82 | R18: 105677.7 | S18: 0 | T18: 0 | U18: 0 | V18: 0 | W18: 08:46:00 | X18: 09:06:00 | Y18: 45.64666103 | Z18: 26.71174979 | AA18: 27.64158918 | AB18: 100 | AC18: 60 | AD18: 0.3286111111 | AG18: 0.09083333333 | AH18: 19.71666667 | AI18: 01/03/16 08:46:59 | AJ18: 01/03/16 09:06:42 | AK18: 14.3 | AL18: 37.76223776 | AM18: 00:00:00 | AN18: 00:00:00 | AO18: 00:05:27 | AP18: 00:05:27
A19: LA08594801 | B19: 2 | C19: 273.1 | D19: 12.7 | E19: 13.34 | F19: 13.18 | G19: 136670 | H19: GR B | I19: D024 | J19: 230 | K19: 1095.3 | L19: 3.369 | M19: 8 | N19: 8762.4 | O19: 8 | P19: 8762.4 | Q19: 90 | R19: 114440.1 | S19: 0 | T19: 0 | U19: 0 | V19: 0 | W19: 09:06:00 | X19: 09:15:00 | Y19: 90.05628518 | Z19: 9.943714822 | AA19: 0 | AB19: 100 | AC19: 60 | AD19: 0.1480555556 | AH19: 8.883333333 | AI19: 01/03/16 09:06:42 | AJ19: 01/03/16 09:15:35 | AK19: 8.9 | AL19: 53.93258427 | AM19: 00:00:00 | AN19: 00:00:00 | AO19: 00:00:00 | AP19: 00:00:00
A20: LA08551202 | B20: 3 | C20: 273.1 | D20: 20.24 | E20: 13.01 | F20: 12.89 | G20: 136944 | H20: SAE 4133 NBVTI | I20: TB20 | J20: 230 | K20: 1748.5 | L20: 5.382 | M20: 18 | N20: 31473 | O20: 18 | P20: 31473 | Q20: 108 | R20: 145913.1 | S20: 0 | T20: 0 | U20: 0 | V20: 0 | W20: 09:15:00 | X20: 10:27:00 | Y20: 41.45555044 | Z20: 6.103178259 | AA20: 52.4412713 | AB20: 100 | AC20: 36 | AD20: 1.206111111 | AG20: 0.6325 | AH20: 43.42 | AI20: 01/03/16 09:15:35 | AJ20: 01/03/16 10:27:57 | AK20: 34.4 | AL20: 31.39534884 | AM20: 00:00:00 | AN20: 00:00:00 | AO20: 00:37:57 | AP20: 00:37:57
A21: LA08551201 | B21: 4 | C21: 273.1 | D21: 20.24 | E21: 13.01 | F21: 12.89 | G21: 136943 | H21: SAE 4133 NBVTI | I21: TB20 | J21: 230 | K21: 1748.5 | L21: 5.382 | M21: 26 | N21: 45461 | O21: 26 | P21: 45461 | Q21: 134 | R21: 191374.1 | S21: 0 | T21: 0 | U21: 0 | V21: 0 | W21: 10:27:00 | X21: 11:24:00 | Y21: 76.80945347 | Z21: 13.55982275 | AA21: 9.630723781 | AB21: 100 | AC21: 36 | AD21: 0.9402777778 | AG21: 0.09055555556 | AH21: 33.85 | AI21: 01/03/16 10:27:57 | AJ21: 01/03/16 11:24:22 | AK21: 51 | AL21: 30.58823529 | AM21: 00:00:00 | AN21: 00:00:00 | AO21: 00:05:26 | AP21: 00:05:26
A22: LA08602001 | B22: 5 | C22: 273 | D22: 21.44 | E22: 9.74 | F22: 12.8 | G22: 136926 | H22: GR B | I22: C033 | J22: 230 | K22: 1729 | L22: 5.32 | M22: 6 | N22: 10374 | O22: 5 | P22: 8645 | Q22: 139 | R22: 200019.1 | S22: 0 | T22: 0 | U22: 1 | V22: 1729 | W22: 11:24:00 | X22: 14:02:00 | Y22: 6.343165239 | Z22: 1.786658209 | AA22: 91.87017655 | AB22: 100 | AC22: 36 | AD22: 2.6275 | AF22: 2.327222222 | AG22: 0.08666666667 | AH22: 94.59 | AI22: 01/03/16 11:24:22 | AJ22: 01/03/16 14:02:01 | AK22: 12.8 | AL22: 28.125 | AM22: 00:00:00 | AN22: 02:19:38 | AO22: 00:05:12 | AP22: 02:24:50
A23: LA08594602 | B23: 6 | C23: 273.1 | D23: 25.4 | E23: 12.43 | F23: 12.32 | G23: 136926 | H23: GR B | I23: C033 | J23: 230 | K23: 1940.3 | L23: 5.966 | M23: 4 | N23: 7761.2 | O23: 4 | P23: 7761.2 | Q23: 143 | R23: 207780.3 | S23: 0 | T23: 0 | U23: 0 | V23: 0 | W23: 14:02:00 | X23: 14:20:00 | Y23: 36.26473255 | Z23: 27.37987307 | AA23: 36.35539438 | AB23: 100 | AC23: 36 | AD23: 0.3063888889 | AG23: 0.1113888889 | AH23: 11.03 | AI23: 01/03/16 14:02:01 | AJ23: 01/03/16 14:20:24 | AK23: 11.7 | AL23: 20.51282051 | AM23: 00:00:00 | AN23: 00:00:00 | AO23: 00:06:41 | AP23: 00:06:41
A24: LA08594601 | B24: 7 | C24: 273.1 | D24: 25.4 | E24: 12.43 | F24: 12.32 | G24: 136827 | H24: GR B | I24: C033 | J24: 230 | K24: 1940 | L24: 5.966 | M24: 2 | N24: 3880 | O24: 2 | P24: 3880 | Q24: 145 | R24: 211660.3 | S24: 0 | T24: 0 | U24: 0 | V24: 0 | W24: 14:20:00 | X24: 14:23:00 | Y24: 97.56097561 | Z24: 2.43902439 | AA24: 0 | AB24: 100 | AC24: 36 | AD24: 0.05694444444 | AH24: 2.05 | AI24: 01/03/16 14:20:24 | AJ24: 01/03/16 14:23:49 | AK24: 3.4 | AL24: 35.29411765 | AM24: 00:00:00 | AN24: 00:00:00 | AO24: 00:00:00 | AP24: 00:00:00
A25: LA08602401 | B25: 8 | C25: 273.1 | D25: 31.75 | E25: 9.85 | F25: 9.52 | G25: 136861 | H25: DIN ST 52 | I25: C028 | J25: 230 | K25: 1803.8 | L25: 5.548 | M25: 4 | N25: 7215.2 | O25: 4 | P25: 7215.2 | Q25: 149 | R25: 218875.5 | S25: 0 | T25: 0 | U25: 0 | V25: 0 | W25: 14:23:00 | X25: 14:49:00 | Y25: 26.24671916 | Z25: 0.4593175853 | AA25: 73.29396325 | AB25: 100 | AC25: 36 | AD25: 0.4233333333 | AG25: 0.3102777778 | AH25: 15.24 | AI25: 01/03/16 14:23:49 | AJ25: 01/03/16 14:49:13 | AK25: 6.8 | AL25: 35.29411765 | AM25: 00:00:00 | AN25: 00:00:00 | AO25: 00:18:37 | AP25: 00:18:37
A26: LA08597501 | B26: 9 | C26: 273 | D26: 36.5 | E26: 6.9 | F26: 6.82 | G26: 136862 | H26: VMEC 134 AP | I26: C030 | J26: 230 | K26: 1472.3 | L26: 4.532 | M26: 4 | N26: 5889.2 | O26: 4 | P26: 5889.2 | Q26: 153 | R26: 224764.7 | S26: 0 | T26: 0 | U26: 0 | V26: 0 | W26: 14:49:00 | X26: 15:19:00 | Y26: 21.8459858 | Z26: 38.50354997 | AA26: 39.65046423 | AB26: 100 | AC26: 36 | AD26: 0.5086111111 | AG26: 0.2016666667 | AH26: 18.31 | AI26: 01/03/16 14:49:13 | AJ26: 01/03/16 15:19:44 | AK26: 18.4 | AL26: 13.04347826 | AM26: 00:00:00 | AN26: 00:00:00 | AO26: 00:12:06 | AP26: 00:12:06
A27: LA08583201 | B27: 10 | C27: 273 | D27: 36.5 | E27: 6.9 | F27: 6.82 | G27: 136561 | H27: VMEC 134 AP | I27: C030 | J27: 230 | K27: 1472 | L27: 4.532 | M27: 2 | N27: 2944 | O27: 2 | P27: 2944 | Q27: 155 | R27: 227708.7 | S27: 0 | T27: 0 | U27: 0 | V27: 0 | W27: 15:19:00 | X27: 15:23:00 | Y27: 91.32420091 | Z27: 8.675799087 | AA27: 0 | AB27: 100 | AC27: 36 | AD27: 0.06083333333 | AH27: 2.19 | AI27: 01/03/16 15:19:44 | AJ27: 01/03/16 15:23:23 | AK27: 3.7 | AL27: 32.43243243 | AM27: 00:00:00 | AN27: 00:00:00 | AO27: 00:00:00 | AP27: 00:00:00
A28: LA08583202 | B28: 11 | C28: 273 | D28: 36.5 | E28: 6.9 | F28: 6.82 | G28: 136862 | H28: VMEC 134 AP | I28: C030 | J28: 230 | K28: 1472 | L28: 4.532 | M28: 2 | N28: 2944 | O28: 2 | P28: 2944 | Q28: 157 | R28: 230652.7 | S28: 0 | T28: 0 | U28: 0 | V28: 0 | W28: 15:23:00 | X28: 15:27:00 | Y28: 91.74311927 | Z28: 8.256880734 | AA28: 0 | AB28: 100 | AC28: 36 | AD28: 0.06055555556 | AH28: 2.18 | AI28: 01/03/16 15:23:23 | AJ28: 01/03/16 15:27:01 | AK28: 3.6 | AL28: 33.33333333 | AM28: 00:00:00 | AN28: 00:00:00 | AO28: 00:00:00 | AP28: 00:00:00
A29: LA08583101 | B29: 12 | C29: 259 | D29: 30 | E29: 7.89 | F29: 8.15 | G29: 136862 | H29: VMEC 134 AP | I29: C030 | J29: 230 | K29: 1400.7 | L29: 4.308 | M29: 6 | N29: 8404.2 | O29: 6 | P29: 8404.2 | Q29: 163 | R29: 239056.9 | S29: 0 | T29: 0 | U29: 0 | V29: 0 | W29: 15:27:00 | X29: 15:51:00 | Y29: 40.76086957 | Z29: 3.532608696 | AA29: 55.70652174 | AB29: 100 | AC29: 36 | AD29: 0.4088888889 | AG29: 0.2277777778 | AH29: 14.72 | AI29: 01/03/16 15:27:01 | AJ29: 01/03/16 15:51:33 | AK29: 10.9 | AL29: 33.02752294 | AM29: 00:00:00 | AN29: 00:00:00 | AO29: 00:13:40 | AP29: 00:13:40
A30: LA08589801 | B30: 13 | C30: 259 | D30: 30 | E30: 7.93 | F30: 8.19 | G30: 136862 | H30: VMEC 134 AP | I30: C030 | J30: 230 | K30: 1407.2 | L30: 4.332 | M30: 4 | N30: 5628.8 | O30: 4 | P30: 5628.8 | Q30: 167 | R30: 244685.7 | S30: 0 | T30: 0 | U30: 0 | V30: 0 | W30: 15:51:00 | X30: 16:00:00 | Y30: 78.89546351 | Z30: 21.10453649 | AA30: 0 | AB30: 100 | AC30: 36 | AD30: 0.1408333333 | AH30: 5.07 | AI30: 01/03/16 15:51:33 | AJ30: 01/03/16 16:00:00 | AK30: 8.4 | AL30: 28.57142857 | AM30: 00:00:00 | AN30: 00:00:00 | AO30: 00:00:00 | AP30: 00:00:00
A31: LA08589801 | B31: 13 | C31: 259 | D31: 30 | E31: 7.93 | F31: 8.19 | G31: 136862 | H31: VMEC 134 AP | I31: C030 | J31: 230 | K31: 1407.2 | L31: 4.332 | M31: 2 | N31: 2814.4 | O31: 2 | P31: 2814.4 | Q31: 169 | R31: 247500.1 | S31: 0 | T31: 0 | U31: 0 | V31: 0 | W31: 16:00:00 | X31: 16:02:00 | Y31: 131.5789474 | Z31: -31.57894737 | AA31: 0 | AB31: 100 | AC31: 36 | AD31: 0.04222222222 | AH31: 1.52 | AI31: 01/03/16 16:00:00 | AJ31: 01/03/16 16:02:32 | AK31: 2.5 | AL31: 48 | AM31: 00:00:00 | AN31: 00:00:00 | AO31: 00:00:00 | AP31: 00:00:00
A32: LA08585601 | B32: 14 | C32: 259 | D32: 36.5 | E32: 6.9 | F32: 6.82 | G32: 136862 | H32: VMEC 134 AP | I32: C030 | J32: 230 | K32: 1472.3 | L32: 4.532 | M32: 4 | N32: 5889.2 | O32: 4 | P32: 5889.2 | Q32: 173 | R32: 253389.3 | S32: 0 | T32: 0 | U32: 0 | V32: 0 | W32: 16:02:00 | X32: 16:18:00 | Y32: 41.36504654 | Z32: 19.02792141 | AA32: 39.60703206 | AB32: 100 | AC32: 36 | AD32: 0.2686111111 | AG32: 0.1063888889 | AH32: 9.67 | AI32: 01/03/16 16:02:32 | AJ32: 01/03/16 16:18:39 | AK32: 9.7 | AL32: 24.74226804 | AM32: 00:00:00 | AN32: 00:00:00 | AO32: 00:06:23 | AP32: 00:06:23
A33: LA08594001 | B33: 15 | C33: 355.6 | D33: 9.5 | E33: 12.13 | F33: 11.97 | G33: 136877 | H33: GRADE 290 | I33: M068 | J33: 230 | K33: 1001 | L33: 3.08 | M33: 12 | N33: 12012 | O33: 12 | P33: 12012 | Q33: 185 | R33: 265401.3 | S33: 0 | T33: 0 | U33: 0 | V33: 0 | W33: 16:18:00 | X33: 19:34:00 | Y33: 5.6447714 | Z33: 3.307156577 | AA33: 91.04807202 | AB33: 100 | AC33: 65 | AD33: 3.270555556 | AG33: 2.977777778 | AH33: 212.5861111 | AI33: 01/03/16 16:18:39 | AJ33: 01/03/16 19:34:53 | AK33: 17.6 | AL33: 40.90909091 | AM33: 00:00:00 | AN33: 00:00:00 | AO33: 02:58:40 | AP33: 02:58:40
A34: LA08595001 | B34: 16 | C34: 355.6 | D34: 9.52 | E34: 13.49 | F34: 13.3 | G34: 136668 | H34: GR B | I34: D024 | J34: 230 | K34: 1114.7 | L34: 3.431 | M34: 9 | N34: 10032.3 | O34: 9 | P34: 10032.3 | Q34: 194 | R34: 275433.6 | S34: 0 | T34: 0 | U34: 0 | V34: 0 | W34: 19:34:00 | X34: 19:48:00 | Y34: 60.34643323 | Z34: 10.5978767 | AA34: 29.05569007 | AB34: 100 | AC34: 65 | AD34: 0.2294444444 | AG34: 0.06666666667 | AH34: 14.91388889 | AI34: 01/03/16 19:34:53 | AJ34: 01/03/16 19:48:39 | AK34: 9.8 | AL34: 55.10204082 | AM34: 00:00:00 | AN34: 00:00:00 | AO34: 00:04:00 | AP34: 00:04:00
A35: LA08595002 | B35: 17 | C35: 355.6 | D35: 9.52 | E35: 13.49 | F35: 13.3 | G35: 136830 | H35: GR B | I35: D024 | J35: 230 | K35: 1114.7 | L35: 3.431 | M35: 6 | N35: 6688.2 | O35: 6 | P35: 6688.2 | Q35: 200 | R35: 282121.8 | S35: 0 | T35: 0 | U35: 0 | V35: 0 | W35: 19:48:00 | X35: 19:56:00 | Y35: 73.68241515 | Z35: 26.31758485 | AA35: 0 | AB35: 100 | AC35: 65 | AD35: 0.1252777778 | AH35: 8.143055556 | AI35: 01/03/16 19:48:39 | AJ35: 01/03/16 19:56:10 | AK35: 7.5 | AL35: 48 | AM35: 00:00:00 | AN35: 00:00:00 | AO35: 00:00:00 | AP35: 00:00:00
A36: LA08598101 | B36: 18 | C36: 355.6 | D36: 9.5 | E36: 13.2 | F36: 13.02 | G36: 136878 | H36: GRADE 290 | I36: M068 | J36: 230 | K36: 1088.7 | L36: 3.351 | M36: 9 | N36: 9798.3 | O36: 9 | P36: 9798.3 | Q36: 209 | R36: 291920.1 | S36: 0 | T36: 0 | U36: 0 | V36: 0 | W36: 19:56:00 | X36: 20:08:00 | Y36: 64.81944583 | Z36: 35.18055417 | AA36: 0 | AB36: 100 | AC36: 65 | AD36: 0.2136111111 | AH36: 13.88472222 | AI36: 01/03/16 19:56:10 | AJ36: 01/03/16 20:08:59 | AK36: 12.8 | AL36: 42.1875 | AM36: 00:00:00 | AN36: 00:00:00 | AO36: 00:00:00 | AP36: 00:00:00
A37: LA08598102 | B37: 19 | C37: 355.6 | D37: 9.5 | E37: 13.2 | F37: 13.02 | G37: 136878 | H37: GRADE 290 | I37: M068 | J37: 230 | K37: 1088.5 | L37: 3.351 | M37: 2 | N37: 2177 | O37: 2 | P37: 2177 | Q37: 211 | R37: 294097.1 | S37: 0 | T37: 0 | U37: 0 | V37: 0 | W37: 20:08:00 | X37: 20:11:00 | Y37: 83.91608392 | Z37: 16.08391608 | AA37: 0 | AB37: 100 | AC37: 65 | AD37: 0.03666666667 | AH37: 2.383333333 | AI37: 01/03/16 20:08:59 | AJ37: 01/03/16 20:11:11 | AK37: 2.2 | AL37: 54.54545455 | AM37: 00:00:00 | AN37: 00:00:00 | AO37: 00:00:00 | AP37: 00:00:00
A38: LA08600803 | B38: 20 | C38: 355.6 | D38: 7.9 | E38: 12.34 | F38: 12.15 | G38: 136918 | H38: SAE 41B30H MOD. | I38: U090 | J38: 230 | K38: 851.5 | L38: 2.618 | M38: 16 | N38: 13624 | O38: 16 | P38: 13624 | Q38: 227 | R38: 307721.1 | S38: 0 | T38: 0 | U38: 0 | V38: 0 | W38: 20:11:00 | X38: 20:43:00 | Y38: 49.8960499 | Z38: 38.04573805 | AA38: 12.05821206 | AB38: 100 | AC38: 60 | AD38: 0.5344444444 | AG38: 0.06444444444 | AH38: 32.06666667 | AI38: 01/03/16 20:11:11 | AJ38: 01/03/16 20:43:15 | AK38: 28.2 | AL38: 34.04255319 | AM38: 00:00:00 | AN38: 00:00:00 | AO38: 00:03:52 | AP38: 00:03:52
A39: LA08600804 | B39: 21 | C39: 355.6 | D39: 7.9 | E39: 12.34 | F39: 12.15 | G39: 136918 | H39: SAE 41B30H MOD. | I39: U090 | J39: 230 | K39: 851.5 | L39: 2.618 | M39: 6 | N39: 5109 | O39: 6 | P39: 5109 | Q39: 233 | R39: 312830.1 | S39: 0 | T39: 0 | U39: 0 | V39: 0 | W39: 20:43:00 | X39: 20:52:00 | Y39: 63.38028169 | Z39: 36.61971831 | AA39: 0 | AB39: 100 | AC39: 60 | AD39: 0.1577777778 | AH39: 9.466666667 | AI39: 01/03/16 20:43:15 | AJ39: 01/03/16 20:52:43 | AK39: 9.5 | AL39: 37.89473684 | AM39: 00:00:00 | AN39: 00:00:00 | AO39: 00:00:00 | AP39: 00:00:00
A40: LA08600802 | B40: 22 | C40: 355.6 | D40: 7.9 | E40: 12.34 | F40: 12.15 | G40: 136920 | H40: SAE 41B30H MOD. | I40: U090 | J40: 230 | K40: 851.5 | L40: 2.618 | M40: 68 | N40: =IF(A40="","",M40*K40) -> 57902 | O40: 65 | P40: =IF(N40="","",IF(AND(T40="",V40=""),N40,IF(T40="",N40-V40,IF(V40="",N40-T40,(N40-T40-V40))))) -> 55347.5 | Q40: =IF(A40="","",O40) -> 65 | R40: =IF(P40="","",P40) -> 55347.5 | S40: 0 | T40: =IF(S40="","",(K40*S40)) -> 0 | U40: 3 | V40: =IF(U40="","",(K40*U40)) -> 2554.5 | W40: 20:52:00 | X40: 23:08:00 | Y40: =IF(M40="","",100*(M40/AC40/(AD40-AE40))) -> 50.20920502 | Z40: =IF(AA40="","",100-Y40-AA40) -> 10.4848634 | AA40: =IF(M40="","",100*(AF40+AG40)/(AD40-AE40)) -> 39.30593158 | AB40: 100 | AC40: 60 | AD40: 2.257222222 | AF40: 0.5805555556 | AG40: 0.3066666667 | AH40: =IF(AC40="","",AC40*(AD40-AE40)) -> 135.4333333 | AI40: 01/03/16 20:52:43 | AJ40: 01/03/16 23:08:09 | AK40: =IF(AD40="","",ROUND(60*(AD40-SUM(AE40:AG40)),1)) -> 82.2 | AL40: =IF(AK40="","",M40/AK40*60) -> 49.6350365 | AM40: 00:00:00 | AN40: 00:34:50 | AO40: 00:18:24 | AP40: 00:53:14
A41: LA08600801 | B41: 23 | C41: 355.6 | D41: 7.9 | E41: 12.34 | F41: 12.15 | G41: 136919 | H41: SAE 41B30H MOD. | I41: U090 | J41: 230 | K41: 851.5 | L41: 2.618 | M41: 53 | N41: =IF(A41="","",M41*K41) -> 45129.5 | O41: 53 | P41: =IF(N41="","",IF(AND(T41="",V41=""),N41,IF(T41="",N41-V41,IF(V41="",N41-T41,(N41-T41-V41))))) -> 45129.5 | Q41: =IF(A41="","",Q40+O41) -> 118 | R41: =IF(P41="","",R40+P41) -> 100477 | S41: 0 | T41: =IF(S41="","",(K41*S41)) -> 0 | U41: 0 | V41: =IF(U41="","",(K41*U41)) -> 0 | W41: 23:08:00 | X41: 00:00:00 | Y41: =IF(M41="","",100*(M41/AC41/(AD41-AE41))) -> 102.2179364 | Z41: =IF(AA41="","",100-Y41-AA41) -> -2.217936355 | AA41: =IF(M41="","",100*(AF41+AG41)/(AD41-AE41)) -> 0 | AB41: 100 | AC41: 60 | AD41: 0.8641666667 | AH41: =IF(AC41="","",AC41*(AD41-AE41)) -> 51.85 | AI41: 01/03/16 23:08:09 | AJ41: 02/03/16 00:00:00 | AK41: =IF(AD41="","",ROUND(60*(AD41-SUM(AE41:AG41)),1)) -> 51.9 | AL41: =IF(AK41="","",M41/AK41*60) -> 61.2716763 | AM41: 00:00:00 | AN41: 00:00:00 | AO41: 00:00:00 | AP41: 00:00:00
Q42: =IF(A42="","",Q41+O42) ->  | R42: =IF(P42="","",R41+P42) ->  | AM42: 00:00:00 | AN42: 00:00:00 | AO42: 00:00:00 | AP42: 00:00:00
AM43: 00:00:00 | AN43: 00:00:00 | AO43: 00:00:00 | AP43: 00:00:00
AM44: 00:00:00 | AN44: 00:00:00 | AO44: 00:00:00 | AP44: 00:00:00
AM45: 00:00:00 | AN45: 00:00:00 | AO45: 00:00:00 | AP45: 00:00:00
AM46: 00:00:00 | AN46: 00:00:00 | AO46: 00:00:00 | AP46: 00:00:00
AM47: 00:00:00 | AN47: 00:00:00 | AO47: 00:00:00 | AP47: 00:00:00
AM48: 00:00:00 | AN48: 00:00:00 | AO48: 00:00:00 | AP48: 00:00:00
AM49: 00:00:00 | AN49: 00:00:00 | AO49: 00:00:00 | AP49: 00:00:00
AM50: 00:00:00 | AN50: 00:00:00 | AO50: 00:00:00 | AP50: 00:00:00
AM51: 00:00:00 | AN51: 00:00:00 | AO51: 00:00:00 | AP51: 00:00:00
AM52: 00:00:00 | AN52: 00:00:00 | AO52: 00:00:00 | AP52: 00:00:00
AM53: 00:00:00 | AN53: 00:00:00 | AO53: 00:00:00 | AP53: 00:00:00
AM54: 00:00:00 | AN54: 00:00:00 | AO54: 00:00:00 | AP54: 00:00:00
AM55: 00:00:00 | AN55: 00:00:00 | AO55: 00:00:00 | AP55: 00:00:00
AM56: 00:00:00 | AN56: 00:00:00 | AO56: 00:00:00 | AP56: 00:00:00
AM57: 00:00:00 | AN57: 00:00:00 | AO57: 00:00:00 | AP57: 00:00:00
AM58: 00:00:00 | AN58: 00:00:00 | AO58: 00:00:00 | AP58: 00:00:00
AM59: 00:00:00 | AN59: 00:00:00 | AO59: 00:00:00 | AP59: 00:00:00
AM60: 00:00:00 | AN60: 00:00:00 | AO60: 00:00:00 | AP60: 00:00:00
AM61: 00:00:00 | AN61: 00:00:00 | AO61: 00:00:00 | AP61: 00:00:00
AM62: 00:00:00 | AN62: 00:00:00 | AO62: 00:00:00 | AP62: 00:00:00
AM63: 00:00:00 | AN63: 00:00:00 | AO63: 00:00:00 | AP63: 00:00:00
AM64: 00:00:00 | AN64: 00:00:00 | AO64: 00:00:00 | AP64: 00:00:00
AM65: 00:00:00 | AN65: 00:00:00 | AO65: 00:00:00 | AP65: 00:00:00
AM66: 00:00:00 | AN66: 00:00:00 | AO66: 00:00:00 | AP66: 00:00:00
AM67: 00:00:00 | AN67: 00:00:00 | AO67: 00:00:00 | AP67: 00:00:00
AM68: 00:00:00 | AN68: 00:00:00 | AO68: 00:00:00 | AP68: 00:00:00
AM69: 00:00:00 | AN69: 00:00:00 | AO69: 00:00:00 | AP69: 00:00:00
AM70: 00:00:00 | AN70: 00:00:00 | AO70: 00:00:00 | AP70: 00:00:00
AM71: =AE71/24 -> 00:00:00 | AN71: =AF71/24 -> 00:00:00 | AO71: =AG71/24 -> 00:00:00 | AP71: 00:00:00
AM72: 00:00:00 | AN72: 00:00:00 | AO72: 00:00:00 | AP72: 00:00:00
AM73: 00:00:00 | AN73: 00:00:00 | AO73: 00:00:00 | AP73: 00:00:00
AM74: 00:00:00 | AN74: 00:00:00 | AO74: 00:00:00 | AP74: 00:00:00
AM75: 00:00:00 | AN75: 00:00:00 | AO75: 00:00:00 | AP75: 00:00:00
AM76: 00:00:00 | AN76: 00:00:00 | AO76: 00:00:00 | AP76: 00:00:00
AM77: 00:00:00 | AN77: 00:00:00 | AO77: 00:00:00 | AP77: 00:00:00
AM78: 00:00:00 | AN78: 00:00:00 | AO78: 00:00:00 | AP78: 00:00:00
AM79: 00:00:00 | AN79: 00:00:00 | AO79: 00:00:00 | AP79: 00:00:00
AM80: 00:00:00 | AN80: 00:00:00 | AO80: 00:00:00 | AP80: 00:00:00

Sheet Boletim Parada
G1: RELATÓRIO DE PARADAS E INTERRUPÇÕES | S1: Laminador - 100%
A2: 24 | B2: INTER. MECÂNICA | E2: INTER. ELÉTRICA | H2: INTER. OPERAÇÃO | K2: INTER. SET UP | N2: INTER. OUTROS | P2: TOTAL INTER. | R2: PARADAS | S2: 01/03/2016 a 02/03/2016
A3: h | B3: =SUMIF($H:$H,200,$D:$D)+SUMIF($H:$H,240,$D:$D)+SUMIF($H:$H,260,$D:$D) -> 0 | E3: =SUMIF($H:$H,300,$D:$D)+SUMIF($H:$H,360,$D:$D)+SUMIF($H:$H,380,$D:$D) -> 0.08263888889 | I3: =SUMIF($H:$H,700,$D:$D)+SUMIF($H:$H,800,$D:$D) -> 0.03851851852 | K3: =SUMIF($F:$F,3,$D:$D) -> 0.2197337963 | N3: =P3-B3-E3-I3-K3+1/24/60/60/100 -> 1.157407407e-07 | P3: =SUMIF($F:$F,"002",$D:$D)+SUMIF($F:$F,"003",$D:$D) -> 0.3408912037 | R3: =24*SUMIF($F:$F,"001",$D:$D) -> 6.892777778 | S3: RESPONSÁVEL
A4: % | B4: =100*24*B3/($A$2-$R$3) -> 0 | E4: =100*24*E3/($A$2-$R$3) -> 11.59354399 | I4: =100*24*I3/($A$2-$R$3) -> 5.403825545 | K4: =100*24*K3/($A$2-$R$3) -> 30.82681129 | N4: =100*24*N3/($A$2-$R$3) -> 1.623745656e-05 | P4: =100*24*P3/($A$2-$R$3) -> 47.82418082
A5: Data | B5: Início | C5: Fim | D5: Duração | E5: Turno | F5: Causa da Interrupção | L5: Local de Instalação | S5: Observação | T5: Ordem de serviço
F6: Cód. | G6: Tipo | H6: Cód. | I6: Motivo | J6: Cód. | K6: Defeito | L6: Área | M6: Cód. | N6: Equipamento | O6: Cód. | P6: Conjunto | Q6: Cód. | R6: Subconjunto
A7: 01/03/16 | B7: 00:10:26 | C7: 00:20:27 | D7: 0.006956018519 | E7: =IF(B7="","",TRUNC(24*B7/8+1)) -> 1 | F7: 1 | G7: PARADA PROGRAMADA | H7: 100 | I7: PROGRAMADA | J7: 118 | K7: TURNO NAO ESCALADO | L7: LAU
A8: 01/03/16 | B8: 01:13:03 | C8: 07:56:36 | D8: 0.2802430556 | E8: =IF(B8="","",TRUNC(24*B8/8+1)) -> 1 | F8: 1 | G8: PARADA PROGRAMADA | H8: 100 | I8: PROGRAMADA | J8: 118 | K8: TURNO NAO ESCALADO | L8: LAU
A9: 01/03/16 | B9: 08:52:19 | C9: 08:57:46 | D9: 0.003784722222 | E9: 2 | F9: 3 | G9: PARADA PARA PREPARACAO | H9: 904 | I9: TROCA DE PAREDE | J9: 001 | K9: PONTA/MANDRIL (3min) | L9: LAU | M9: 30 | N9: LAMINADOR DE BLOCOS SWW | O9: 240 | P9: LAMINADOR SWW - MAQUINA | S9: TROCA DE PAREDE DE 15.11 PARA 12.70.
A10: 01/03/16 | B10: 09:16:47 | C10: 09:48:50 | D10: 0.02225694444 | E10: 2 | F10: 3 | G10: PARADA PARA PREPARACAO | H10: 906 | I10: TROCA DE BITOLA | J10: 002 | K10: BIELA. PONTA/MANDRIL (16min) | L10: LAU | M10: 30 | N10: LAMINADOR DE BLOCOS SWW | O10: 240 | P10: LAMINADOR SWW - MAQUINA | S10: TROCA DE PARADE E BIELA DO LAMINADOR SWW E LAMINADOR 3.
A11: 01/03/16 | B11: 09:50:02 | C11: 09:55:56 | D11: 0.004097222222 | E11: 2 | F11: 3 | G11: PARADA PARA PREPARACAO | H11: 904 | I11: TROCA DE PAREDE | J11: 006 | K11: CONTROLANDO 1a PEÇA IMS (3 min) | L11: LAU | M11: 40 | N11: LAMINADOR DE LUPAS 3 | O11: 450 | P11: LAMINADOR 3 - MAQUINA | S11: AGUARDANDO A PRIMEIRA PEÇA PASSAR NO IMS.
A12: 01/03/16 | B12: 11:12:26 | C12: 11:17:52 | D12: 0.003773148148 | E12: 2 | F12: 3 | G12: PARADA PARA PREPARACAO | H12: 904 | I12: TROCA DE PAREDE | J12: 001 | K12: PONTA/MANDRIL (3min) | L12: LAU | M12: 30 | N12: LAMINADOR DE BLOCOS SWW | O12: 240 | P12: LAMINADOR SWW - MAQUINA | S12: tTROCA DE PAREDE DE 20.24 PARA 21.44.
A13: 01/03/16 | B13: 11:30:18 | C13: 11:50:56 | D13: 0.0143287037 | E13: 2 | F13: 2 | G13: PARADA NAO PROGRAMADA | H13: 800 | I13: INTERRUPCAO DE PRODUCAO | L13: LAU | M13: 30 | N13: LAMINADOR DE BLOCOS SWW | O13: 240 | P13: LAMINADOR SWW - MAQUINA | S13: RETIRAR LUPA COMPRIDA NA SAIDA DO SWW APÓS DEVERGENCIA DE INFORMAÇÃO ENTRE FOLHA PI E MTS.
A14: 01/03/16 | B14: 11:50:56 | C14: 13:49:56 | D14: 0.08263888889 | E14: 2 | F14: 2 | G14: PARADA NAO PROGRAMADA | H14: 300 | I14: ELETRICA | J14: 332 | K14: FALTA DE FASE | L14: LAU | M14: 30 | N14: LAMINADOR DE BLOCOS SWW | O14: 250 | P14: LAMINADOR SWW - SAIDA | Q14: 530 | R14: REMOVEDOR | S14: AJUSTAR ATUADOR DO SENSOR DO REMOVEDOR DE SAIDA DEVIDO COLISÃO ENTRA BIELA E O 1º BRAÇO DO REMOVEDOR. | T14: 104660125
A15: 01/03/16 | B15: 13:51:39 | C15: 13:56:51 | D15: 0.003611111111 | E15: 2 | F15: 3 | G15: PARADA PARA PREPARACAO | H15: 904 | I15: TROCA DE PAREDE | J15: 006 | K15: CONTROLANDO 1a PEÇA IMS (3 min) | L15: LAU | M15: 30 | N15: LAMINADOR DE BLOCOS SWW | O15: 240 | P15: LAMINADOR SWW - MAQUINA | S15: AGUARDANDO A PRIMEIRA PEÇA PASSAR NO IMS APÓS PARADA MECÂNICA.
A16: 01/03/16 | B16: 14:08:44 | C16: 14:15:25 | D16: 0.004641203704 | E16: 2 | F16: 3 | G16: PARADA PARA PREPARACAO | H16: 904 | I16: TROCA DE PAREDE | J16: 001 | K16: PONTA/MANDRIL (3min) | L16: LAU | M16: 30 | N16: LAMINADOR DE BLOCOS SWW | O16: 240 | P16: LAMINADOR SWW - MAQUINA | S16: TROCA DE PAREDE DE 21.44 PARA 25.40.
A17: 01/03/16 | B17: 14:25:32 | C17: 14:29:10 | D17: 0.002523148148 | E17: 2 | F17: 3 | G17: PARADA PARA PREPARACAO | H17: 904 | I17: TROCA DE PAREDE | J17: 006 | K17: CONTROLANDO 1a PEÇA IMS (3 min) | L17: LAU | M17: 30 | N17: LAMINADOR DE BLOCOS SWW | O17: 240 | P17: LAMINADOR SWW - MAQUINA | S17: AGUARDANDO A PRIMEIRA PEÇA PASSAR NO IMS.
A18: 01/03/16 | B18: 14:30:53 | C18: 14:35:51 | D18: 0.003449074074 | E18: 2 | F18: 3 | G18: PARADA PARA PREPARACAO | H18: 904 | I18: TROCA DE PAREDE | J18: 001 | K18: PONTA/MANDRIL (3min) | L18: LAU | M18: 30 | N18: LAMINADOR DE BLOCOS SWW | O18: 240 | P18: LAMINADOR SWW - MAQUINA | S18: TROCA DE PAREDE DE 25.40 PARA 31.75.
A19: 01/03/16 | B19: 14:35:51 | C19: 14:39:51 | D19: 0.002777777778 | E19: 2 | F19: 3 | G19: PARADA PARA PREPARACAO | H19: 904 | I19: TROCA DE PAREDE | J19: 006 | K19: CONTROLANDO 1a PEÇA IMS (3 min) | L19: LAU | M19: 30 | N19: LAMINADOR DE BLOCOS SWW | O19: 240 | P19: LAMINADOR SWW - MAQUINA | S19: AGUARDANDO A PRIMEIRA PEÇA PASSAR NO IMS.
A20: 01/03/16 | B20: 14:41:34 | C20: 14:47:35 | D20: 0.004178240741 | E20: 2 | F20: 3 | G20: PARADA PARA PREPARACAO | H20: 904 | I20: TROCA DE PAREDE | J20: 001 | K20: PONTA/MANDRIL (3min) | L20: LAU | M20: 30 | N20: LAMINADOR DE BLOCOS SWW | O20: 240 | P20: LAMINADOR SWW - MAQUINA | S20: TROCA DE PAREDE DE 31.75 PARA 36.50.
A21: 01/03/16 | B21: 14:50:56 | C21: 14:56:04 | D21: 0.003564814815 | E21: 2 | F21: 3 | G21: PARADA PARA PREPARACAO | H21: 904 | I21: TROCA DE PAREDE | J21: 006 | K21: CONTROLANDO 1a PEÇA IMS (3 min) | L21: LAU | M21: 30 | N21: LAMINADOR DE BLOCOS SWW | O21: 240 | P21: LAMINADOR SWW - MAQUINA | S21: AGUARDANDO A PRIMEIRA PEÇA PASSAR NO IMS.
A22: 01/03/16 | B22: 14:57:47 | C22: 15:04:45 | D22: 0.004837962963 | E22: 2 | F22: 3 | G22: PARADA PARA PREPARACAO | H22: 904 | I22: TROCA DE PAREDE | J22: 006 | K22: CONTROLANDO 1a PEÇA IMS (3 min) | L22: LAU | M22: 30 | N22: LAMINADOR DE BLOCOS SWW | O22: 240 | P22: LAMINADOR SWW - MAQUINA | S22: AGUARDANDO A SEGUNDA PEÇA PASSAR NO IMS.
A23: 01/03/16 | B23: 15:28:50 | C23: 15:36:45 | D23: 0.005497685185 | E23: 2 | F23: 3 | G23: PARADA PARA PREPARACAO | H23: 904 | I23: TROCA DE PAREDE | J23: 001 | K23: PONTA/MANDRIL (3min) | L23: LAU | M23: 30 | N23: LAMINADOR DE BLOCOS SWW | O23: 240 | P23: LAMINADOR SWW - MAQUINA | S23: TROCA DE PAREDE DE 36.50 PARA 30.00.
A24: 01/03/16 | B24: 15:38:34 | C24: 15:44:19 | D24: 0.003993055556 | E24: 2 | F24: 3 | G24: PARADA PARA PREPARACAO | H24: 904 | I24: TROCA DE PAREDE | J24: 006 | K24: CONTROLANDO 1a PEÇA IMS (3 min) | L24: LAU | M24: 30 | N24: LAMINADOR DE BLOCOS SWW | O24: 240 | P24: LAMINADOR SWW - MAQUINA | S24: AGUARDANDO A SEGUNDA PEÇA PASSAR NO IMS.
A25: 01/03/16 | B25: 16:04:21 | C25: 16:07:30 | D25: 0.0021875 | E25: 3 | F25: 3 | G25: PARADA PARA PREPARACAO | H25: 904 | I25: TROCA DE PAREDE | J25: 001 | K25: PONTA/MANDRIL (3min) | L25: LAU | M25: 30 | N25: LAMINADOR DE BLOCOS SWW | O25: 240 | P25: LAMINADOR SWW - MAQUINA | S25: DE 30.00 X 36.50
A26: 01/03/16 | B26: 16:09:19 | C26: 16:12:33 | D26: 0.00224537037 | E26: 3 | F26: 3 | G26: PARADA PARA PREPARACAO | H26: 904 | I26: TROCA DE PAREDE | J26: 006 | K26: CONTROLANDO 1a PEÇA IMS (3 min) | L26: LAU | M26: 30 | N26: LAMINADOR DE BLOCOS SWW | O26: 240 | P26: LAMINADOR SWW - MAQUINA | S26: CONTROLAR PRIMEIRA PEÇA DA PARAEDE 36.50 NO IMS
A27: 01/03/16 | B27: 16:19:39 | C27: 19:11:53 | D27: 0.1196064815 | E27: 3 | F27: 3 | G27: PARADA PARA PREPARACAO | H27: 908 | I27: TROCA DE CALIBRE | J27: 010 | K27: CIL.SWW.LAM.PERIF.(PROG.PLP) (130 min) | L27: LAU | M27: 40 | N27: LAMINADOR DE LUPAS 3 | O27: 450 | P27: LAMINADOR 3 - MAQUINA | S27: DE 3.270 PARA 1350.
A28: 01/03/16 | B28: 19:18:50 | C28: 19:25:16 | D28: 0.004467592593 | E28: =IF(B28="","",TRUNC(24*B28/8+1)) -> 3 | F28: 3 | G28: PARADA PARA PREPARACAO | H28: 908 | I28: TROCA DE CALIBRE | J28: 016 | K28: CONTROLANDO 1a PEÇA IMS (3 min) | L28: LAU | M28: 40 | N28: LAMINADOR DE LUPAS 3 | O28: 450 | P28: LAMINADOR 3 - MAQUINA | S28: CONTROLANDO 1ª PEÇA PASSAR PELO IMS APÓS TROCAR CALIBRE.
A29: 01/03/16 | B29: 19:34:53 | C29: 19:38:53 | D29: 0.002777777778 | E29: =IF(B29="","",TRUNC(24*B29/8+1)) -> 3 | F29: 3 | G29: PARADA PARA PREPARACAO | H29: 904 | I29: TROCA DE PAREDE | J29: 001 | K29: PONTA/MANDRIL (3min) | L29: LAU | M29: 30 | N29: LAMINADOR DE BLOCOS SWW | O29: 240 | P29: LAMINADOR SWW - MAQUINA | S29: DE 9.50 PARA 9.52.
A30: 01/03/16 | B30: 20:16:51 | C30: 20:20:43 | D30: 0.002685185185 | E30: 3 | F30: 3 | G30: PARADA PARA PREPARACAO | H30: 904 | I30: TROCA DE PAREDE | J30: 001 | K30: PONTA/MANDRIL (3min) | L30: LAU | M30: 40 | N30: LAMINADOR DE LUPAS 3 | O30: 450 | P30: LAMINADOR 3 - MAQUINA | S30: DE 9.50 X 7.90
A31: 01/03/16 | B31: 21:09:09 | C31: 21:27:33 | D31: 0.01277777778 | E31: 3 | F31: 3 | G31: PARADA PARA PREPARACAO | H31: 904 | I31: TROCA DE PAREDE | J31: 007 | K31: EQUALIZAÇÃO DE TEMPERATURA (20 MINS) | L31: LAU | M31: 70 | N31: FORNO NASSHEUER | O31: 730 | P31: FORNO NASSHEUER - AQUECIMENTO | S31: FAZER VAGAS NO FORNO NASSHEUER PARA EQUALIZAR TEMPERATURA PARA ENFORNAMENTO DO GARRAFA 355.6 X 7.90 41B30
A32: 01/03/16 | B32: 21:46:55 | C32: 21:50:01 | D32: 0.002152777778 | E32: 3 | F32: 2 | G32: PARADA NAO PROGRAMADA | H32: 800 | I32: INTERRUPCAO DE PRODUCAO | L32: LAU | M32: 55 | N32: LAMINADOR ALISADOR - REELER II | O32: 30 | P32: LAMINADOR ALISADOR REELER II - MAQUINA | S32: REELER 2 PARADO PARA CORRIGIR AMASSAMENTO NO MATERIAL E EXCESSO DE TUBOS NO REELER 1.
A33: 01/03/16 | B33: 22:17:05 | C33: 22:32:43 | D33: 0.01085648148 | E33: 3 | F33: 2 | G33: PARADA NAO PROGRAMADA | H33: 800 | I33: INTERRUPCAO DE PRODUCAO | L33: LAU | M33: 40 | N33: LAMINADOR DE LUPAS 3 | O33: 430 | P33: LAMINADOR 3 - ENTRADA | S33: RETIRAR SUCATA NO LAMINADOR 3 COM AUXILIO DA PONTE 10 DEVIDO O TUBO TER RASGADO NO MANDRIL DE 2º PASSE.
A34: 01/03/16 | B34: 22:33:48 | C34: 22:49:54 | D34: 0.01118055556 | E34: 3 | F34: 2 | G34: PARADA NAO PROGRAMADA | H34: 800 | I34: INTERRUPCAO DE PRODUCAO | L34: LAU | M34: 40 | N34: LAMINADOR DE LUPAS 3 | O34: 430 | P34: LAMINADOR 3 - ENTRADA | S34: RETIRAR SUCATA NO LAMINADOR 3 COM AUXILIO DA PONTE 10 DEVIDO O TUBO TER AGARRADO NO MANDRIL DE 1º PASSE.
